Cogmind - Beta 15 @@@ ROGUE MODE // 2025.06.01 @ 00:22:26 Player: Skysub Result: Destroyed by G-50 Soldier with Heavy Laser Performance ------------- Evolutions (5) 2500 Regions Visited (13) 2600 Robots Destroyed (51) 255 Value Destroyed (1441) 1441 Prototype IDs (22) 440 Alien Tech Used (0) 0 Bonus (782) 782 TOTAL SCORE: 8018 Bonus ------- High Alert Combat Kills 13 Follower Combat Kills 540 Met Imprinter 300 Friendly Fire -71 Cogmind --------- Core Integrity 0/1000 Matter 300/300 Energy 100/100 System Corruption 1% Temperature Cool (9) Movement Core (50) Location -5/Extension Parts ------- > --- POWER (2) -------- (None) > --- PROPULSION (6) --- (None) > --- UTILITY (7) ------ (None) > --- WEAPON (2) ------- (None) > --- INVENTORY (5) ---- Advanced Weight Redist. System Mobile Refinery Mk. CCLXVII Plasma Rifle KE Penetrator Improved Plasma Cutter Peak State ------------ > --- POWER ------------ Backup Power III F-cell Engine > --- PROPULSION ------- Cooled Cesium-ion Thruster Biomechanical Wings Flightbrick > --- UTILITY ---------- Small Storage Unit Enhanced Optical Array Advanced Sensor Array Improved Signal Interpreter Advanced Melee Analysis Suite Reaction Control System Hacking Suite System Shield > --- WEAPON ----------- Heavy Battle Rifle Phasing Sabre > --- INVENTORY -------- Light Fission Core Cesium-ion Thruster Advanced Weight Redist. System Structural Scanner Improved Light Armor Plating Mobile Refinery Mk. CCLXVII V3-11A's Pendant Dirty Datajack [Rating: 98] Favorites ----------- Power Subdweller Power Source Engine Subdweller Power Source Power Core Light Fission Core Propulsion Subdweller Monowheel Treads Light Treads Wheel Subdweller Monowheel Hover Unit Gravmag System Flight Unit Flightbrick Utility Small Storage Unit Device V3-11A's Pendant Storage Small Storage Unit Processor Enhanced Optical Array Hackware System Shield Protection Improved Light Armor Plating Weapon Mining Claw Energy Gun Medium Laser Energy Cannon Subdweller Beam Cannon Ballistic Gun Subdweller Machine Gun Ballistic Cannon Battle Cannon Launcher Rocket Launcher Special Weapon Improved Plasma Cutter Impact Weapon Makeshift Hammer Slashing Weapon Mining Claw Piercing Weapon Spear Special Melee Weapon Dirty Datajack Build | -11 -10 -10 -8 -8 -8 -6 -6 -6 -6 -6 -5 -5 -5 ------- Run | Yrd Mat Sub Mat Sto Rec Fac Low Low Zio Dee Pro Fac Ext Slots Evolved 10 | . . . 4 . . 4 . . . . . 2 . Power 1 | . . . . . . 1 . . . . . . . Propulsion 4 | . . . 2 . . 2 . . . . . . . Utility 5 | . . . 2 . . 1 . . . . . 2 . Weapon . | . . . . . . . . . . . . . . Parts Attached 70 | 7 1 16 7 4 3 10 3 1 4 2 . 6 6 Power 8 | 1 . 2 2 2 . . . . . 1 . . . Engine 7 | 1 . 2 2 2 . . . . . . . . . Core 1 | . . . . . . . . . . 1 . . . Reactor . | . . . . . . . . . . . . . . Propulsion 16 | 2 . 6 1 . . 4 . . . 1 . 2 . Treads 3 | 2 . 1 . . . . . . . . . . . Leg . | . . . . . . . . . . . . . . Wheel 5 | . . 5 . . . . . . . . . . . Hover 1 | . . . . . . . . . . . . 1 . Flight 7 | . . . 1 . . 4 . . . 1 . 1 . Utility 26 | 2 . 2 4 1 2 5 3 . 2 . . 2 3 Device 11 | 1 . 1 2 1 . 3 . . 2 . . . 1 Storage 1 | 1 . . . . . . . . . . . . . Processor 6 | . . . 1 . . 2 2 . . . . . 1 Hackware 4 | . . . 1 . 1 . . . . . . 2 . Protection 4 | . . 1 . . 1 . 1 . . . . . 1 Artifact . | . . . . . . . . . . . . . . Weapon 20 | 2 1 6 . 1 1 1 . 1 2 . . 2 3 Energy Gun 2 | 1 . 1 . . . . . . . . . . . Energy Cannon 1 | . . 1 . . . . . . . . . . . Ballistic Gun 6 | 1 . 2 . . . . . 1 1 . . . 1 Ballistic Cannon 1 | . . 1 . . . . . . . . . . . Launcher 2 | . . 1 . 1 . . . . . . . . . Special Weapon 1 | . . . . . . . . . . . . 1 . Impact Weapon 1 | . . . . . . . . . . . . 1 . Slashing Weapon 4 | . 1 . . . 1 . . . 1 . . . 1 Piercing Weapon 1 | . . . . . . 1 . . . . . . . Special Melee Weapon 1 | . . . . . . . . . . . . . 1 Unidentified Prototypes 6 | . . 1 . 1 . 2 . . 2 . . . . Parts Lost 35 | . . 4 . 1 . . 1 . . 7 1 2 19 Power 6 | . . 1 . . . . . . . 2 1 . 2 Propulsion 7 | . . 1 . . . . . . . 1 . 1 4 Utility 14 | . . 1 . . . . . . . 2 . 1 10 Weapon 8 | . . 1 . 1 . . 1 . . 2 . . 3 Highest Loss Streak 13 | . . 2 . 1 . . 1 . . 4 1 2 13 To Critical Strikes . | . . . . . . . . . . . . . . Average Backups 6 | 2 4 5 6 6 7 7 8 8 8 7 5 7 5 Power . | . 1 . . 1 1 1 1 1 1 . . . . Propulsion . | 1 2 . . . . . . 1 1 1 . . . Utility 2 | . . 1 1 2 3 4 5 5 5 5 4 5 3 Weapon 1 | . 1 1 2 2 1 1 . . . . . 1 1 Tool/Special . | . . . . . . . . . . . . . . Unused Backups 13 | . . 6 1 . 1 1 . . . . . . 4 Power 1 | . . . 1 . . . . . . . . . . Propulsion 2 | . . 2 . . . . . . . . . . . Utility 5 | . . 2 . . . 1 . . . . . . 2 Weapon 5 | . . 2 . . 1 . . . . . . . 2 Tool/Special . | . . . . . . . . . . . . . . Average Slot Usage (%) 86 | . 100 98 56 60 67 77 80 82 79 79 59 68 54 Engine 10 | . 14 13 6 7 7 8 11 11 11 8 . 3 4 Treads 4 | . 28 7 . . . . . . . . . . . Wheel 9 | . . 20 1 . . . . . . . . . . Flight 6 | . . . 6 7 7 13 16 16 16 16 20 17 9 Device 10 | . 14 10 12 12 7 10 10 9 11 3 11 11 10 Storage 9 | . 14 14 7 7 7 5 5 5 5 5 6 5 1 Processor 5 | . . . 5 7 7 10 12 16 16 15 13 11 10 Hackware 4 | . . . 5 7 12 11 11 11 11 10 . 8 3 Protection 2 | . . 2 1 1 7 5 3 1 . 5 1 . . Energy Cannon 3 | . . 7 . . . . 2 . . . . . . Ballistic Gun 4 | . 14 7 1 4 . . . 4 2 4 . . . Launcher 1 | . . . . . 7 5 1 . . . . . . Slashing Weapon 6 | . . 11 7 4 4 1 . . 4 4 . . . Peak Build Rating 98 | 9 9 18 54 58 58 89 91 93 98 96 40 70 67 Average Rating 41 | 6 9 14 49 53 56 78 88 91 93 93 39 51 43 On Entrance 49 | . 9 9 16 51 55 58 89 89 91 96 36 35 64 Naked Turns 53 | . . . . . . . . . . . . . 53 Heaviest Build 38 | 12 12 23 24 26 24 30 38 28 31 31 16 16 16 Greatest Support 40 | 40 40 40 40 24 24 36 39 36 36 36 17 24 19 Greatest Overweight (x) 7 | . . 7 . 1 . . . . . . . . 3 Average Overweight (x) . | . . 1 . . . . . . . . . . . Largest Inventory Capacity 8 | 8 8 8 8 8 8 8 8 8 8 8 8 8 8 Average Capacity 7 | 7 8 8 8 8 8 8 8 8 8 8 8 8 5 Most Carried 8 | 4 5 8 8 8 8 8 8 8 8 8 8 8 8 Average Carried 7 | 2 4 7 6 6 7 7 8 8 7 7 5 7 5 Final Capacity 8 | 8 8 8 8 8 8 8 8 8 8 8 8 8 5 Final Carried 8 | 4 5 8 7 7 8 8 8 8 8 6 8 8 5 Class Distribution -------------------- 62% | Mutant 22% | Hacker-Scout 6% | Hacker-Mutant 6% | Hacker-Sprinter Dominant Class ---------------- Mutant | -10/Materials Mutant | -10/Subcaves Mutant | -8/Materials Mutant | -8/Storage Hacker-Mutant | -8/Recycling Hacker-Scout | -6/Factory Hacker-Scout | -6/Lower Caves Hacker-Scout | -6/Lower Caves Hacker-Scout | -6/Zion Hacker-Sprinter | -6/Deep Caves Sprinter | -5/Proximity Caves Hacker-Mutant | -5/Factory Mutant | -5/Extension Resources | -11 -10 -10 -8 -8 -8 -6 -6 -6 -6 -6 -5 -5 -5 ----------- Run | Yrd Mat Sub Mat Sto Rec Fac Low Low Zio Dee Pro Fac Ext Matter Collected 1741 | 235 71 430 27 . 261 188 204 82 50 53 30 55 55 Remotely . | . . . . . . . . . . . . . . Salvage Created 1461 | 41 230 246 27 32 . 385 142 119 . 10 . 23 206 Parts 85 | 6 12 20 3 1 . 28 9 5 . . . . 1 Haulers Intercepted . | . . . . . . . . . . . . . . Recyclers Shooed 1 | . 1 . . . . . . . . . . . . Parts Field Recycled . | . . . . . . . . . . . . . . Retrieved Matter . | . . . . . . . . . . . . . . Parts Self-Destructed 23 | . . 11 . . . . 6 6 . . . . . Prevented 2 | . . . . . . . . 2 . . . . . Kills | -11 -10 -10 -8 -8 -8 -6 -6 -6 -6 -6 -5 -5 -5 ------- Run | Yrd Mat Sub Mat Sto Rec Fac Low Low Zio Dee Pro Fac Ext Combat Hostiles Destroyed 38 | . 5 10 . . . 7 8 5 . 1 . . 2 Melee 8 | . . . . . . 1 2 3 . . . . 2 Guns 10 | . 5 3 . . . . . 1 . 1 . . . Cannons 6 | . . 5 . . . . 1 . . . . . . AOE 14 | . . 2 . . . 6 5 1 . . . . . Classes Destroyed 13 | 1 2 2 1 1 . 3 1 . . 1 . . 1 Worker 2 | . 1 . . . . 1 . . . . . . . Builder 2 | . . . 1 . . 1 . . . . . . . Tunneler 6 | 2 1 . . . . 2 . . . . . 1 . Recycler 2 | . . . . . . 1 . . . . . . 1 Watcher 2 | . . . . 1 . 1 . . . . . . . Swarmer 16 | . . 3 . . . 3 5 5 . . . . . Grunt 7 | . 5 . . . . 2 . . . . . . . Brawler 1 | . . . . . . 1 . . . . . . . Sentry 3 | . . . . . . 1 1 . . . . . 1 Hunter 1 | . . . . . . . . . . . . . 1 Subdweller 7 | . . 7 . . . . . . . . . . . Thief 2 | . . . . . . . 2 . . . . . . Assembled 1 | . . . . . . . . . . 1 . . . Best Kill Streak 5 | 1 4 3 1 1 . 5 3 3 . 1 . 1 1 Combat Bots Only 3 | . 3 3 . . . 3 3 3 . 1 . . 1 Max Kills in Single Turn 3 | 1 1 1 1 1 . 3 2 1 . 1 . 1 1 Gunslinging . | . . . . . . . . . . . . . . Exploded 2 | . . 1 . . . 2 2 1 . . . . . Melee 1 | . . . . . . 1 1 1 . . . . 1 Uniques/NPCs Destroyed . | . . . . . . . . . . . . . . Combat | -11 -10 -10 -8 -8 -8 -6 -6 -6 -6 -6 -5 -5 -5 -------- Run | Yrd Mat Sub Mat Sto Rec Fac Low Low Zio Dee Pro Fac Ext Hostile Shots Fired 515 | . 34 43 5 52 8 35 52 77 . 83 8 6 112 Missed 215 | . 6 10 4 20 4 21 31 36 . 38 4 2 39 Hits 300 | . 28 33 1 32 4 14 21 41 . 45 4 4 73 Melee 12 | . . . . . . . 12 . . . . . . Projectile 288 | . 28 33 1 32 4 14 9 41 . 45 4 4 73 AOE 1 | . . 1 . . . . . . . . . . . Critical Strikes 13 | . . 2 . 4 . . . 1 . . . . 6 Damage Taken 6143 | . 308 927 16 490 98 93 312 615 . 1529 55 63 1637 Core 1584 | . 56 183 . 45 . 15 66 84 . 96 29 . 1010 Absorbed by Shields 91 | . . . . . . . . . . . . . 91 Redirected to Shielding 17 | . . . . . . . . . . . . . 17 Ignored by Resistances 8 | . . . . 8 . . . . . . . . . Core Remaining (%) 65 | 100 . 4 . . 91 . . . . . 65 . . Volleys Fired 142 | 8 33 35 . 14 . 8 13 13 . 15 . . 3 Largest 2 | 2 2 2 . 2 . 1 2 1 . 1 . . 1 Hottest 113 | 70 70 110 . 110 . 33 113 23 . 33 . . 20 Shots Fired 214 | 16 65 61 . 18 . 8 15 13 . 15 . . 3 Gun 156 | 16 65 35 . 12 . . . 13 . 15 . . . Cannon 29 | . . 19 . 4 . . 6 . . . . . . Launcher 26 | . . 7 . 2 . 8 9 . . . . . . Special 3 | . . . . . . . . . . . . . 3 Kinetic 128 | 8 32 48 . 12 . . . 13 . 15 . . . Thermal 67 | 8 33 13 . 4 . . 6 . . . . . 3 Explosive 19 | . . . . 2 . 8 9 . . . . . . Electromagnetic . | . . . . . . . . . . . . . . Robot Hit Streak 8 | 4 7 8 . 4 . 5 7 3 . 3 . . 2 Robot Miss Streak 6 | 2 6 3 . 2 . 1 1 2 . 4 . . 1 Penetration Max . | . . . . . . . . . . . . . . Secondary Targets . | . . . . . . . . . . . . . . Shots Hit Robots 174 | 9 38 36 3 11 . 16 14 14 . 5 . 1 27 Core Hits 92 | 3 13 17 . 4 . 27 11 6 . 3 . . 8 Critical Kills 1 | . . 1 . . . . . . . . . . . Critical Parts Destroyed . | . . . . . . . . . . . . . . Critical Strikes 8 | 1 2 1 . . . 1 . 1 . . . . 2 Burn 3 | 1 2 . . . . . . . . . . . . Destroy 1 | . . 1 . . . . . . . . . . . Sever 2 | . . . . . . . . . . . . . 2 Impale 2 | . . . . . . 1 . 1 . . . . . Melee Attacks 109 | . 3 20 7 3 1 20 17 6 . . . 3 29 Impact 12 | . . . . . . . . . . . . 3 9 Slashing 41 | . 3 20 7 3 1 3 . . . . . . 4 Piercing 56 | . . . . . . 17 17 6 . . . . 16 Sneak Attacks 12 | . . 1 1 . . 4 . . . . . 1 5 Combat Hostiles 4 | . . . . . . . . . . . . . 4 Follow-up Attacks . | . . . . . . . . . . . . . . Damage Inflicted 5056 | 82 438 958 103 241 . 1350 846 307 . 154 . 84 493 Guns 1187 | 82 438 184 . 215 . . . 114 . 154 . . . Cannons 445 | . . 312 . 26 . . 107 . . . . . . Explosions 1894 | . . 418 . . . 916 560 . . . . . . Melee 1496 | . . 44 103 . . 434 179 193 . . . 84 459 Ramming . | . . . . . . . . . . . . . . Kinetic 1379 | 18 152 726 . 215 . . . 114 . 154 . . . Thermal 705 | 64 286 188 . 26 . . 107 . . . . . 34 Explosive 1476 | . . . . . . 916 560 . . . . . . Electromagnetic . | . . . . . . . . . . . . . . Impact 357 | . . . . . . . . . . . . 84 273 Slashing 382 | . . 44 103 . . 98 . . . . . . 137 Piercing 757 | . . . . . . 336 179 193 . . . . 49 Highest Corruption 1 | . . . . . . . . . . . . 1 1 Average Corruption 1 | . . . . . . . . . . . . 1 1 Corruption Purged . | . . . . . . . . . . . . . . Corruption Blocked . | . . . . . . . . . . . . . . Effects 4 | . . . . . . . . . . . . 3 1 Matter Fused 2 | . . . . . . . . . . . . 2 . Data Loss (minor) 1 | . . . . . . . . . . . . . 1 Data Loss (major) 1 | . . . . . . . . . . . . 1 . Overload Shots . | . . . . . . . . . . . . . . Overflow Damage 289 | . . . 21 . . 84 60 4 . . . 44 76 Projectiles . | . . . . . . . . . . . . . . Explosions 49 | . . . . . . 11 38 . . . . . . Melee 240 | . . . 21 . . 73 22 4 . . . 44 76 Knockbacks 3 | . . 1 . . . . . . . . . 1 1 Impact 2 | . . . . . . . . . . . . 1 1 Kinetic 1 | . . 1 . . . . . . . . . . . Secondary . | . . . . . . . . . . . . . . Self-Inflicted Damage 103 | . . 72 . 16 . . 15 . . . . . . Shots 7 | . . 5 . 1 . . 1 . . . . . . Rammed . | . . . . . . . . . . . . . . Targets Rammed . | . . . . . . . . . . . . . . Kicked . | . . . . . . . . . . . . . . Crushed . | . . . . . . . . . . . . . . Highest Temperature 306 | 50 264 292 . 243 . 5 189 6 . 28 . . 306 Average Temperature 80 | 22 104 181 . 101 . 5 67 2 . 12 . . 153 Received Heat Transfer 1961 | . 168 441 9 279 9 24 6 54 . 414 . . 557 Effects 4 | . 3 . . 1 . . . . . . . . . Interference 4 | . 3 . . 1 . . . . . . . . . Siege Activations . | . . . . . . . . . . . . . . Martial Activations . | . . . . . . . . . . . . . . Shielding Activations . | . . . . . . . . . . . . . . Robots Disrupted . | . . . . . . . . . . . . . . Combat Hostiles . | . . . . . . . . . . . . . . Robots Corrupted 2 | . . . . . . . . . . . . 1 1 Combat Hostiles . | . . . . . . . . . . . . . . Parts Fried 6 | . . . . . . . . 1 . . . 2 3 Impact Corruptions 5 | . . . . . . . . . . . . 2 3 Robots Melted . | . . . . . . . . . . . . . . Combat Hostiles . | . . . . . . . . . . . . . . Parts Melted 3 | . 3 . . . . . . . . . . . . Heat Transferred 1826 | 259 999 309 . 37 . . 148 . . . . . 74 Parts Sabotaged . | . . . . . . . . . . . . . . Parts Stolen . | . . . . . . . . . . . . . . Parts Stripped . | . . . . . . . . . . . . . . Power Chain Reactions . | . . . . . . . . . . . . . . Alert | -11 -10 -10 -8 -8 -8 -6 -6 -6 -6 -6 -5 -5 -5 ------- Run | Yrd Mat Sub Mat Sto Rec Fac Low Low Zio Dee Pro Fac Ext Maximum Alert Level 2 | . . . . . . 2 . . . . . . . Low Security (%) 75 | 100 100 . 100 100 100 20 . . . . . 100 100 Level 1 9 | . . . . . . 31 . . . . . . . Level 2 14 | . . . . . . 47 . . . . . . . Level 3 . | . . . . . . . . . . . . . . Level 4 . | . . . . . . . . . . . . . . Level 5 . | . . . . . . . . . . . . . . High Security . | . . . . . . . . . . . . . . Max Security . | . . . . . . . . . . . . . . Peak Influence 496 | 5 90 . 50 109 125 496 . . . . . 15 86 Initial 250 | . . . 50 . 38 250 . . . . . 9 . Average 118 | . 38 . 18 36 43 332 . . . . . 2 16 Influence Increases 2629 | 10 168 171 29 199 234 951 235 270 . . 45 47 270 Destroy 0b10 Robot/C 860 | . 100 80 . . 20 280 120 100 . . . . 160 Destroy 0b10 Robot/NC 75 | 10 10 . 5 5 . 35 . . . . . 5 5 Destroy Leader 126 | . 20 . . 2 . 64 10 20 . . . . 10 Allied During Kill 127 | . . 1 . . 4 92 . . . . . . 30 Successful Hack 187 | . 7 . 22 22 74 26 . . . . . 10 26 Select Force Hacks 180 | . 30 . . 30 120 . . . . . . . . Disable Machine 105 | . . . . 15 . 60 . . . . . 15 15 Destroy Structure 104 | . 1 . 2 20 1 54 . . . . . 2 24 Advance Influence 250 | . . . . . . 250 . . . . . . . Partial Spotted 30 | . . . . . 15 . . . . . . 15 . Lose Combat Pursuer 585 | . . 90 . 105 . 90 105 150 . . 45 . . Influence Decreases 2629 | 10 117 124 125 102 333 506 356 193 401 . 30 62 270 Entered New Map 772 | . . 25 48 2 61 . 166 63 401 . . 6 . Time Decay 1411 | 10 117 89 77 80 194 386 170 130 . . 20 51 87 Lost Part 148 | . . 10 . 10 . . 10 . . . 10 5 103 Lost Ally 220 | . . . . 10 . 120 10 . . . . . 80 Purge Threat 78 | . . . . . 78 . . . . . . . . Squads Dispatched 17 | . 2 . 1 1 . 9 . . . . . 3 1 Investigation 8 | . 1 . . 1 . 2 . . . . . 3 1 Extermination 2 | . . . . . . 2 . . . . . . . Reinforcement 3 | . 1 . 1 . . 1 . . . . . . . Assault 1 | . . . . . . 1 . . . . . . . Garrison 3 | . . . . . . 3 . . . . . . . Intercept . | . . . . . . . . . . . . . . Searches Triggered . | . . . . . . . . . . . . . . Construction Impeded 1 | . . . . . . 1 . . . . . . . Haulers Reinforced . | . . . . . . . . . . . . . . Active Scanning Responses . | . . . . . . . . . . . . . . Cargo Convoy Interrupts . | . . . . . . . . . . . . . . Stealth | -11 -10 -10 -8 -8 -8 -6 -6 -6 -6 -6 -5 -5 -5 --------- Run | Yrd Mat Sub Mat Sto Rec Fac Low Low Zio Dee Pro Fac Ext Distress Signals 4 | . 1 . . 1 1 . . . . . 1 . . Communications Jammed . | . . . . . . . . . . . . . . Distress Signals . | . . . . . . . . . . . . . . Times Spotted 143 | . 10 15 5 14 6 21 14 16 . 11 9 2 20 Peak Tracking Total 9 | . 3 4 4 8 3 6 4 7 . 7 6 2 9 Tactical Retreats 16 | . . 2 . 3 . 3 2 4 . 1 1 . . Traps | -11 -10 -10 -8 -8 -8 -6 -6 -6 -6 -6 -5 -5 -5 ------- Run | Yrd Mat Sub Mat Sto Rec Fac Low Low Zio Dee Pro Fac Ext Traps Triggered 6 | . . 4 . . . . . . . . . . 2 Indirectly . | . . . . . . . . . . . . . . Trap Hack Attempts . | . . . . . . . . . . . . . . Triggered . | . . . . . . . . . . . . . . Disarmed . | . . . . . . . . . . . . . . Reprogrammed . | . . . . . . . . . . . . . . Reused . | . . . . . . . . . . . . . . Traps Extracted . | . . . . . . . . . . . . . . Installed . | . . . . . . . . . . . . . . Triggered . | . . . . . . . . . . . . . . Machines | -11 -10 -10 -8 -8 -8 -6 -6 -6 -6 -6 -5 -5 -5 ---------- Run | Yrd Mat Sub Mat Sto Rec Fac Low Low Zio Dee Pro Fac Ext Machines Disabled 10 | . . 1 . 1 . 4 . . . 1 . 1 2 Max in Single Turn 1 | . . 1 . 1 . 1 . . . 1 . 1 1 Machines Repaired . | . . . . . . . . . . . . . . Machines Dismantled 1 | . . . . . . . . . . . . . 1 Machines Sabotaged . | . . . . . . . . . . . . . . Overloaded Fab Kills . | . . . . . . . . . . . . . . Hacking | -11 -10 -10 -8 -8 -8 -6 -6 -6 -6 -6 -5 -5 -5 --------- Run | Yrd Mat Sub Mat Sto Rec Fac Low Low Zio Dee Pro Fac Ext Machines Accessed 39 | . 2 2 3 3 11 6 1 . . . . 6 5 Terminals 21 | . 1 . 3 2 5 4 1 . . . . . 5 Fabricators 1 | . . . . . . . . . . . . 1 . Repair Stations 2 | . . . . . . 1 . . . . . 1 . Recycling Units 10 | . 1 . . 1 5 . . . . . . 3 . Scanalyzers . | . . . . . . . . . . . . . . Garrison Access 2 | . . . . . . 1 . . . . . 1 . Total Hacks 127 | . 4 4 14 11 44 20 1 . . . . 13 16 Successful 69 | . 4 4 4 8 27 7 1 . . . . 7 7 Failed 58 | . . . 10 3 17 13 . . . . . 6 9 Catastrophic 9 | . . . 1 2 2 3 . . . . . . 1 Database Lockouts . | . . . . . . . . . . . . . . Manual 60 | . 2 . 14 9 17 11 . . 5 . . . 2 Terminals 77 | . 2 . 14 9 22 13 1 . . . . . 16 Fabricators 3 | . . . . . . . . . . . . 3 . Repair Stations 7 | . . . . . . 3 . . . . . 4 . Recycling Units 23 | . 2 . . 2 16 . . . . . . 3 . Scanalyzers . | . . . . . . . . . . . . . . Garrison Access 7 | . . . . . . 4 . . . . . 3 . Terminal Hacks 34 | . 1 4 1 4 14 4 1 . . . . . 5 Record 10 | . . 3 . . 6 . 1 . . . . . . Part Schematic 1 | . . . . . 1 . . . . . . . . Robot Analysis 1 | . . . . . 1 . . . . . . . . Prototype ID Bank 2 | . . . . . 2 . . . . . . . . Open Door 4 | . . . . 1 . . . . . . . . 3 Branch Access Points 3 | . 1 . 1 1 . . . . . . . . . Terminal Index 1 | . . . . . . 1 . . . . . . . Alert Level 2 | . . . . . 1 1 . . . . . . . Unreport Threat 1 | . . . . . 1 . . . . . . . . Recall Investigation 1 | . . . . . . 1 . . . . . . . Hauler Manifests 1 | . . . . . . . . . . . . . 1 Registered Components 2 | . . . . 1 . 1 . . . . . . . Zone Layout 4 | . . . . 1 2 . . . . . . . 1 Proto ID Catalog 1 | . . 1 . . . . . . . . . . . Fabricator Hacks 3 | . . . . . . . . . . . . 3 . Network Status 1 | . . . . . . . . . . . . 1 . Load Schematic 1 | . . . . . . . . . . . . 1 . Build 1 | . . . . . . . . . . . . 1 . Repair Station Hacks 2 | . . . . . . 1 . . . . . 1 . Refit 2 | . . . . . . 1 . . . . . 1 . Recycling Unit Hacks 10 | . 1 . . 1 5 . . . . . . 3 . Report Inventory 9 | . 1 . . 1 4 . . . . . . 3 . Retrieve Components 1 | . . . . . 1 . . . . . . . . Scanalyzer . | . . . . . . . . . . . . . . Garrison Access Hacks . | . . . . . . . . . . . . . . Unauthorized Hacks 20 | . 2 . 3 3 8 2 . . . . . . 2 Terminals 14 | . 1 . 3 2 4 2 . . . . . . 2 Assimilate 3 | . . . 1 1 . 1 . . . . . . . Botnet 11 | . 1 . 2 1 4 1 . . . . . . 2 Fabricators . | . . . . . . . . . . . . . . Repair Stations . | . . . . . . . . . . . . . . Recycling Units 6 | . 1 . . 1 4 . . . . . . . . Tunnel 6 | . 1 . . 1 4 . . . . . . . . Scanalyzers . | . . . . . . . . . . . . . . Garrison Access . | . . . . . . . . . . . . . . Data Cores Recovered . | . . . . . . . . . . . . . . Used . | . . . . . . . . . . . . . . Hacking Detections 27 | . . . 3 2 8 6 . . . . . 5 3 Full Trace Events 7 | . . . . . 1 2 . . . . . 3 1 Feedback Events 1 | . . . . . . . . . . . . 1 . Corruption 1 | . . . . . . . . . . . . 1 . Feedback Blocked . | . . . . . . . . . . . . . . Robot Schematics Acquired 3 | . . . . . . . . . 3 . . . . Robots Built . | . . . . . . . . . . . . . . Authchips . | . . . . . . . . . . . . . . Time . | . . . . . . . . . . . . . . Total Robot Build Rating . | . . . . . . . . . . . . . . Part Schematics Acquired 15 | . . . . . 1 . . . 14 . . . . Parts Built 2 | . . . . . . . . . . . . 2 . Authchips . | . . . . . . . . . . . . . . Time 106 | . . . . . . . . . . . . 106 . Total Part Build Rating 12 | . . . . . . . . . . . . 12 . Parts Repaired . | . . . . . . . . . . . . . . Time . | . . . . . . . . . . . . . . Parts Recycled . | . . . . . . . . . . . . . . Recycled Matter . | . . . . . . . . . . . . . . Retrieved Matter . | . . . . . . . . . . . . . . Retrieved Components 3 | . . . . . 3 . . . . . . . . Parts Scanalyzed . | . . . . . . . . . . . . . . Part Schematics Acquired . | . . . . . . . . . . . . . . Parts Damaged . | . . . . . . . . . . . . . . Bothacking | -11 -10 -10 -8 -8 -8 -6 -6 -6 -6 -6 -5 -5 -5 ------------ Run | Yrd Mat Sub Mat Sto Rec Fac Low Low Zio Dee Pro Fac Ext Used RIF Installer . | . . . . . . . . . . . . . . Robots Hacked . | . . . . . . . . . . . . . . Non-combat . | . . . . . . . . . . . . . . Combat . | . . . . . . . . . . . . . . Robot Hacks Applied . | . . . . . . . . . . . . . . Relay Couplers Released . | . . . . . . . . . . . . . . Fabnet Peak Effective % . | . . . . . . . . . . . . . . Robots Rewired 2 | . . . . . . . . . . . . . 2 Allies Hacked . | . . . . . . . . . . . . . . Hacks Repelled . | . . . . . . . . . . . . . . Allies | -11 -10 -10 -8 -8 -8 -6 -6 -6 -6 -6 -5 -5 -5 -------- Run | Yrd Mat Sub Mat Sto Rec Fac Low Low Zio Dee Pro Fac Ext Total Allies 23 | . . 2 . 1 6 1 . . 5 . . . 8 Largest Group 6 | . . 2 . 1 6 6 1 . 5 5 . . 4 Highest-Rated Group 265 | . . 38 . 10 114 114 26 . 124 124 . . 265 Highest-Rated Ally 159 | . . 19 . 10 19 26 26 . 31 31 . . 159 Total Orders . | . . . . . . . . . . . . . . Ally Attacks 154 | . . 9 . . 3 62 . . . 36 . . 44 Total Damage 2966 | . . 116 . . 70 1161 . . . 377 . . 1242 Kills 20 | . . 1 . . 2 8 . . . 2 . . 7 Allies Corrupted . | . . . . . . . . . . . . . . Allies Melted . | . . . . . . . . . . . . . . Intel | -11 -10 -10 -8 -8 -8 -6 -6 -6 -6 -6 -5 -5 -5 ------- Run | Yrd Mat Sub Mat Sto Rec Fac Low Low Zio Dee Pro Fac Ext Active Infowar (turns) 5541 | 59 260 1582 184 96 . 901 356 279 625 521 100 314 264 Optics 3224 | . . . . . . 765 356 279 625 521 100 314 264 Sensors 2723 | . . . . . . 901 356 279 622 . 100 244 221 Terrain 2136 | 59 260 1582 184 51 . . . . . . . . . Structural 2593 | . . . . 45 . 848 316 224 556 . 90 270 244 Robot Analysis Total 1 | . . . . . 1 . . . . . . . . Derelict Logs Recovered 6 | . . 1 . . . . 2 1 . . 2 . . Drone Launches . | . . . . . . . . . . . . . . Drone Recoveries . | . . . . . . . . . . . . . . Exploration | -11 -10 -10 -8 -8 -8 -6 -6 -6 -6 -6 -5 -5 -5 ------------- Run | Yrd Mat Sub Mat Sto Rec Fac Low Low Zio Dee Pro Fac Ext Turns Passed 9494 | 205 274 4615 234 162 532 916 356 279 625 521 100 314 361 Spaces Moved 10830 | 107 96 2781 296 256 1073 1408 827 727 1385 474 315 595 490 Core 471 | 2 . 340 . . . . . . . . . . 129 Treads 752 | 105 96 551 . . . . . . . . . . . Legs . | . . . . . . . . . . . . . . Wheels 1895 | . . 1890 5 . . . . . . . . . . Hover 190 | . . . . . . . . . . . . 190 . Flight 7522 | . . . 291 256 1073 1408 827 727 1385 474 315 405 361 Fastest Speed 28 | 50 160 110 40 40 40 30 28 32 32 30 30 29 34 Average Speed 68 | 157 160 154 41 40 40 32 31 32 32 31 30 40 43 Slowest Speed 400 | 160 160 400 110 80 40 34 32 32 32 32 30 60 200 Overloaded Moves 2 | . . . . . . . 2 . . . . . . Propulsion Burnouts . | . . . . . . . . . . . . . . Robots Hopped 35 | . . . 2 5 5 2 . 1 . 2 6 2 10 Potential Cave-ins . | . . . . . . . . . . . . . . Cave-ins Triggered . | . . . . . . . . . . . . . . Exploration Rate (%) 54 | 6 17 94 22 38 97 36 96 77 90 69 56 10 59 Regions Visited 13 Branch Regions 9 Pre-discovered Areas 11 | . 1 1 . 1 4 . 1 . 3 . . . . Known Exits Taken 7 | . . . 1 1 . 1 1 1 1 . 1 . . Unknown Exits Taken 6 | 1 1 1 . . 1 . . . . 1 . 1 . Scrap Searched 20 | . . 12 . . . . 4 1 1 . 2 . . Spaces Dug 72 | . 2 3 2 31 1 7 25 . . . . 1 . Terrain Destroyed 239 | . 2 83 2 34 1 58 57 . . 1 . 1 . Melee 21 | . 2 3 2 1 1 7 4 . . . . 1 . Projectile 6 | . . 2 . 3 . . . . . 1 . . . AOE 212 | . . 78 . 30 . 51 53 . . . . . . Terrain Rammed . | . . . . . . . . . . . . . . Walls Destroyed . | . . . . . . . . . . . . . . Machines Disabled . | . . . . . . . . . . . . . . Actions | -11 -10 -10 -8 -8 -8 -6 -6 -6 -6 -6 -5 -5 -5 --------- Run | Yrd Mat Sub Mat Sto Rec Fac Low Low Zio Dee Pro Fac Ext Total 12526 | 126 151 2987 393 284 1169 1820 871 749 1563 826 313 661 613 Wait 1252 | . 18 106 74 3 88 367 3 2 168 337 . 55 31 Move 10757 | 106 95 2780 292 247 1062 1403 826 724 1384 469 304 591 474 Hop 25 | . . . 1 3 5 2 . 1 . 2 4 1 6 Pick Up 43 | 5 1 11 4 2 4 4 1 . 1 . 3 3 4 Fast Attach 25 | 6 . 2 3 . 3 3 . 1 1 . . 4 2 Attach 22 | 1 . 2 4 3 . 3 . . . 2 1 2 4 Detach 8 | . . . 3 2 1 2 . . . . . . . Swap 55 | . 1 19 1 6 1 5 10 2 7 . 1 . 2 Drop 30 | . . 12 4 1 4 3 1 . 2 . . 1 2 Fire 142 | 8 33 35 . 14 . 8 13 13 . 15 . . 3 Melee 109 | . 3 20 7 3 1 20 17 6 . . . 3 29 Ram . | . . . . . . . . . . . . . . Kick . | . . . . . . . . . . . . . . Crush . | . . . . . . . . . . . . . . Escape Stasis 36 | . . . . . . . . . . . . . 36 Rewire 13 | . . . . . . . . . . 1 . . 12 Trap . | . . . . . . . . . . . . . . Miscellaneous 9 | . . . . . . . . . . . . 1 8 Route ------- -11/Scrapyard -10/Materials (discovered 2 exits: Min / *Sub) -10/Subcaves (discovered 2 exits: *Mat x2) -8/Materials (discovered 2 exits: [*Fac] / *Sto) -8/Storage -8/Recycling -6/Factory -6/Lower Caves -6/Lower Caves (discovered 2 exits: *Fac / *Zio) -6/Zion (discovered 2 exits: *Dee / *Pro) -6/Deep Caves -5/Proximity Caves -5/Factory -5/Extension History --------- Turn | Location | Event 65 | -11/Scrapyard | Discovered new exit (range 15) 206 | -11/Scrapyard | Entered Materials 234 | -10/Materials | Identified exit to Mines 302 | -10/Materials | Build established: Mutant 447 | -10/Materials | Discovered new exit (range 10) 480 | -10/Materials | Entered Subcaves 1029 | -10/Subcaves | A swath of the cavern ceiling suddenly collapsed 1235 | -10/Subcaves | Shifting Twisted Machinery released Sub. Beam Cannon 1250 | -10/Subcaves | Shifting Twisted Machinery released Sub. Monowheel 1620 | -10/Subcaves | Learned Materials security intel 1740 | -10/Subcaves | Discovered new exit (range 15) 1769 | -10/Subcaves | Core integrity fell below 50% 2021 | -10/Subcaves | Visited triangular shrine 2028 | -10/Subcaves | Found Prototype Device 2038 | -10/Subcaves | Identified V3-11A's Pendant 2053 | -10/Subcaves | Befriended Subdweller 2100 | -10/Subcaves | Shifting Twisted Machinery released Sub. Monowheel 2111 | -10/Subcaves | Shifting Twisted Machinery released Sub. Laser 2201 | -10/Subcaves | Ambushed by Subdweller buried in earth 2203 | -10/Subcaves | Befriended Subdweller 2253 | -10/Subcaves | Core integrity fell below 20% 2299 | -10/Subcaves | Learned location of Zion (-6) 2299 | -10/Subcaves | Met a Zionite searching for "candidates" 2628 | -10/Subcaves | Discovered new exit (range 7) 2630 | -10/Subcaves | A swath of the cavern ceiling suddenly collapsed 2757 | -10/Subcaves | Visited 4L-MR0's lab 2775 | -10/Subcaves | Found Flightbrick 3548 | -10/Subcaves | Visited Clippyterm 3552 | -10/Subcaves | Learned Factory emergency access door positions 5095 | -10/Subcaves | Entered Materials 5095 | -8/Materials | Evolved 4 slots: Propulsion x2, Utility x2 5103 | -8/Materials | Attached Flightbrick, gained temporary slots: Utility x3 5160 | -8/Materials | Identified exit to Storage 5328 | -8/Materials | Discovered new exit (range 16) 5329 | -8/Materials | Entered Storage 5332 | -8/Storage | Identified exit to Recycling 5490 | -8/Storage | Used back door to open Recycling access 5491 | -8/Storage | Entered Recycling 5553 | -8/Recycling | Befriended Subdweller 5553 | -8/Recycling | Befriended Subdweller 5558 | -8/Recycling | Befriended Subdweller 5570 | -8/Recycling | Discovered new exit (range 10) 5578 | -8/Recycling | Befriended Subdweller 5588 | -8/Recycling | Befriended Subdweller 5753 | -8/Recycling | Befriended Subdweller 5827 | -8/Recycling | Entered Scraplab 5914 | -8/Recycling | Build established: Hacker-Mutant 6023 | -8/Recycling | Entered Factory 6023 | -6/Factory | Accompanied by 6 allies 6023 | -6/Factory | Evolved 4 slots: Power x1, Propulsion x2, Utility x1 6415 | -6/Factory | Build established: Hacker-Scout 6430 | -6/Factory | Garrison activated, responded to threat 6723 | -6/Factory | First assault squad dispatched 6803 | -6/Factory | Spotted B-75 Beast 6924 | -6/Factory | Discovered new exit (range 11) 6927 | -6/Factory | Identified exit to Lower Caves 6939 | -6/Factory | Entered Lower Caves 6939 | -6/Lower Caves | Accompanied by 1 ally 6960 | -6/Lower Caves | Attracted the attention of an 0b10 checkpoint 7035 | -6/Lower Caves | Encountered a Warlord checkpoint 7041 | -6/Lower Caves | Learned 4 Factory zone layouts 7217 | -6/Lower Caves | Discovered new exit (range 12) 7220 | -6/Lower Caves | Identified exit to Lower Caves 7257 | -6/Lower Caves | Entered a destroyed Warlord outpost 7295 | -6/Lower Caves | Entered another Lower Caves area 7314 | -6/Lower Caves | Discovered new exit (range 15) 7362 | -6/Lower Caves | Spotted B-75 Beast 7411 | -6/Lower Caves | Identified exit to Factory 7455 | -6/Lower Caves | Learned 4 Factory zone layouts 7490 | -6/Lower Caves | Encountered a Warlord checkpoint 7501 | -6/Lower Caves | Attracted the attention of an 0b10 base 7509 | -6/Lower Caves | Discovered new exit (range 3) 7509 | -6/Lower Caves | Identified exit to Zion 7540 | -6/Lower Caves | Lost 3 allies 7574 | -6/Lower Caves | Entered Zion 7598 | -6/Zion | Given the Hacking Drone Bay 7598 | -6/Zion | Found Prototype Device 7598 | -6/Zion | Identified Hacking Drone Bay 7602 | -6/Zion | Discovered new exit (range 10) 7605 | -6/Zion | Identified exit to Proximity Caves 7654 | -6/Zion | Learned location of Armory (-3) 7682 | -6/Zion | Gained Derelict followers 7709 | -6/Zion | Learned location of Warlord (-4) 7756 | -6/Zion | Learned Factory emergency access door positions 7757 | -6/Zion | Acquired unknown access codes intercepted by a Zionite 7819 | -6/Zion | Met Imprinter 7858 | -6/Zion | Found Prototype Device 7859 | -6/Zion | Identified Mobile Refinery Mk. CCLXVII 7937 | -6/Zion | Opened final containment barrier to the Deep Caves 7943 | -6/Zion | Discovered new exit (range 3) 7943 | -6/Zion | Saw the warning signs outside the Deep Caves entrance 7944 | -6/Zion | Identified exit to Deep Caves 8199 | -6/Zion | Entered Deep Caves 8199 | -6/Deep Caves | Accompanied by 5 allies 8485 | -6/Deep Caves | Build established: Hacker-Sprinter 8583 | -6/Deep Caves | Attacked by Z-Imprinter 8627 | -6/Deep Caves | Z-Facility disabled 8641 | -6/Deep Caves | Lost 4 allies 8719 | -6/Deep Caves | Discovered new exit (range 6) 8720 | -6/Deep Caves | Entered Proximity Caves 8743 | -5/Proximity Caves | Lost 4 parts (1n1u2w) 8743 | -5/Proximity Caves | Learned Factory stockpile data 8820 | -5/Proximity Caves | Entered Factory 8820 | -5/Factory | Evolved 2 slots: Utility x2 8961 | -5/Factory | Discovered new exit (range 13) 9027 | -5/Factory | Fabricated Imp. Plasma Cutter? 9134 | -5/Factory | Entered Extension 9180 | -5/Extension | Rescued a captive Derelict 9204 | -5/Extension | Rescued a captive Derelict 9205 | -5/Extension | Rescued a captive Derelict 9234 | -5/Extension | Rescued A7 9253 | -5/Extension | Lost 5 parts (1p2n2u) 9369 | -5/Extension | Spotted B-75 Beast 9372 | -5/Extension | Spotted B-75 Beast 9381 | -5/Extension | Lost 3 allies 9392 | -5/Extension | Extracted ID and sensor layout for unrecognized location from A7's data core 9399 | -5/Extension | Core integrity fell below 50% 9469 | -5/Extension | Rescued a captive Derelict 9473 | -5/Extension | Lost 13 parts (1p2n7u3w) 9480 | -5/Extension | Core integrity fell below 20% 9495 | -5/Extension | Destroyed by G-50 Soldier with Heavy Laser Last Messages --------------- Acquired KE Penetrator. Penetrated by Slug. Connecting with Door Terminal... >>Open(Door) Sealed Heavy Doors opened. W6-HB2(b): "Free at last!" Penetrated by Slug. Attempting to rewire UJ-VM2(l). Penetrated by Slug. Attempting to rewire UJ-VM2(l). UJ-VM2(l) rewired. Slug penetrates UJ-VM2(l). Y-64 Sentinel Imp. Medium Armor Plating severed. Attempting to rewire 7B-1NF(h). UJ-VM2(l) destroyed. Critical hit (Burn: +37). Slug penetrates W6-HB2(b). Penetrated by Slug. Attempting to rewire 36-C7Y(g). Attempting to rewire WS-CY8(l). Map ----- +----------------------------------------------------+ | | | | | | | | | | | | | | | | | | | | | | | | | | | | | | | | | | | | | | | ?????????????????????????????????????????????????? | | ?????????????????????????????????????????????????? | | ?????????????????????????????????????????????????? | | ?#########???????????????????????????????????????? | | ?# #????????????########???????????????????? | | ?# #######??????# ] #???????????????????? | | ?# #??????# @ #???????????????????? | | ?# ##+#####??# gll #???????????????????? | | ?###### # #??# == #???????????????????? | | ####### # = #??# ==g #???????????????????? | | =# ! #??# #???????????????????? | | #=% =####g##+######### ???????????? | | # + ??????????? | | # = # #???????????????? | | ##+##### ^ #???????????????? | | #???????????????? | | ####### #########################???????????????? | | #????#T #???????????????????????????????????????? | | #????## #???????????????????????????????????????? | | #?????# #???????????????????????????????????????? | | #?????###???????????????????????????????????????? | | #???????????????????????????????????????????????? | | #???????????????????????????????????????????????? | | #???????????????????????????????????????????????? | | #???????????????????????????????????????????????? | | #???????????????????????????????????????????????? | | #???????????????????????????????????????????????? | | #???????????????????????????????????????????????? | | ##??????????????????????????????????????????????? | | ##??????????????????????????????????????????????? | | ####????????????????????????????????????????????? | +----------------------------------------------------+ Best States ------------- Heat Dissipation 40 Energy Generation 25 Energy Capacity 500 Matter Stores 300 Matter Capacity 300 Sight Range 22 Robot Scan Range 16 Terrain Scan Range 16 Terrain Scan Density 85 Armor Coverage 300 Resistance: KI 10 Propulsion Shielding 33 Melee Speed Boost 20 Evasion (%) 71 Melee Accuracy 8 Recoil Reduction 2 Offensive Hacking 24 Defensive Hacking 10 Item Schematics ----------------- Powered Armor | -8/Recycling | Hacked Adv. Shield Generator | -6/Zion | Archive Hpw. Shock Rifle | -6/Zion | Archive System Guard | -6/Zion | Archive KE Penetrator | -6/Zion | Archive Phase Gun | -6/Zion | Archive Imp. Medium Treads | -6/Zion | Archive Hyp. Gauss Cannon | -6/Zion | Archive Lrn. Tractor Beam | -6/Zion | Archive Hvy. Machine Gun | -6/Zion | Archive Disruptor Cannon | -6/Zion | Archive Imp. Particle Charger | -6/Zion | Archive Imp. Plasma Cutter | -6/Zion | Archive Fusion Compressor | -6/Zion | Archive Adv. Hardlight Generator | -6/Zion | Archive Robot Schematics ------------------ T-07 Excavator | -6/Zion | Archive A-15 Conveyor | -6/Zion | Archive A-02 Transporter | -6/Zion | Archive Fabricated ------------ Imp. Plasma Cutter | x2 | -5/Factory Repaired ---------- Nothing Alien Tech Used ----------------- None Achievements -------------- Error 47 Challenges ------------ None Game ------ Seed LauncherSwarmImmobilizer Manual? 0 Play Time 02:18:05 Cumulative 113.5 hours Start 2025.05.31 @ 14:21:08 End 2025.06.01 @ 00:22:26 Sessions 1 Manual Loads 0 Difficulty Rogue Special Mode None Game No. 117 Rogue 117 Adventurer 0 Explorer 0 Win Type - Total 2 Types 1/0/0/1/0/0/0/0/0/0 Lore% 59 Gallery% 55 Achievement% 49 Wizard Run 0 Options --------- Layout 1 ASCII 0 Keyboard 1 Movement Arrows Keybinds 0 Fullscreen 1 Font 36/Smallcaps Map View 50x40 Zoom Use 6% Tactical HUD 0 Map Filters NONE Filters NONE Steam 1 RUN: 7a956fed-5ce1-4f78-875e-ed7fc8d5907f